bitfinex-derivatives/quotes_ETHF0:USTF0_20260113
["timestamp","ask_amount","ask_price","bid_price","bid_amount"]
[1768268311235,0.00367597,3096.4,3095.3,3.60450226]
[1768268311439,0.96683791,3096.3,3095.3,3.60450226]
[1768268311638,0.96683791,3096.2,3095.3,3.60450226]
[1768268311940,0.96683791,3096.1,3095.3,3.60450226]
[1768268312136,0.96683791,3096.0,3095.3,3.60450226]
[1768268312336,0.72078843,3096.4,3095.3,3.60450226]
[1768268312640,0.72078843,3096.4,3094.9,0.00484418]
[1768268312641,0.71711246,3096.1,3094.9,3.60934644]
[1768268312839,0.96685475,3096.0,3094.9,3.60934644]
[1768268313043,0.71711246,3096.1,3094.9,3.60934644]
[1768268313233,0.96683549,3096.0,3094.9,3.60934644]
[1768268313433,0.71711246,3096.1,3094.9,3.60934644]
[1768268313727,0.96694118,3096.0,3094.9,3.60934644]
[1768268313939,0.71711246,3096.1,3094.9,3.60934644]
[1768268314136,0.96694132,3096.0,3094.9,3.60934644]
[1768268314335,0.71711246,3096.1,3094.9,3.60934644]
[1768268314635,0.96704589,3096.0,3094.9,3.60934644]
[1768268314836,0.71711246,3096.1,3094.9,3.60934644]
[1768268315038,0.96704571,3096.0,3094.9,3.60934644]
[1768268315238,0.71711246,3096.1,3094.9,3.60934644]
[1768268315440,0.96708011,3096.0,3094.9,3.60934644]
[1768268315633,0.71711246,3096.1,3094.9,3.60934644]
[1768268315934,0.96708011,3096.0,3094.9,3.60934644]
[1768268316132,0.71711246,3096.1,3094.9,3.60934644]
[1768268316336,0.96711227,3096.0,3094.9,3.60934644]
[1768268316634,0.71711246,3096.1,3094.9,3.60934644]
[1768268316837,0.96711234,3096.0,3094.9,3.60934644]
[1768268317031,0.16534597,3096.4,3094.9,3.60934644]
[1768268317232,0.96711421,3096.3,3094.9,3.60934644]
[1768268317437,0.96711421,3096.2,3094.9,3.60934644]
[1768268317637,0.96711421,3096.1,3094.9,3.60934644]
[1768268317832,0.16534597,3096.4,3095.2,3.64243015]
[1768268318139,0.88245843,3096.4,3095.2,3.64243015]
[1768268318346,0.88245843,3096.4,3094.9,3.64727433]
[1768268318832,0.71711246,3096.1,3094.9,3.64727433]
[1768268324745,0.16534597,3096.4,3094.9,4.36438679]
[1768268325146,1.78934597,3096.4,3094.9,4.36438679]
[1768268326345,0.16534597,3096.4,3094.9,4.36438679]
[1768268326650,1.624,3096.3,3094.9,4.36438679]
[1768268327250,0.71711246,3096.2,3094.9,3.64727433]
[1768268329356,2.34111246,3096.2,3094.9,3.64727433]
[1768268329847,0.96142083,3096.1,3094.9,3.64727433]
[1768268330038,0.96142083,3096.0,3094.9,3.64727433]
[1768268330238,0.16534597,3096.4,3094.9,3.64727433]
[1768268330239,0.96142083,3095.9,3094.9,3.64727433]
[1768268330440,1.78934597,3096.4,3094.9,3.64727433]
[1768268330749,0.96143079,3096.3,3094.9,3.64727433]
[1768268330947,0.16534597,3096.4,3094.9,3.64727433]
[1768268330948,0.96143079,3096.2,3094.9,3.64727433]
[1768268331142,0.96143079,3096.1,3094.9,3.64727433]
[1768268331341,0.96143079,3096.0,3094.9,3.64727433]
[1768268331539,0.16534597,3096.4,3094.9,3.64727433]
[1768268331740,0.9614622,3096.3,3094.9,3.64727433]
[1768268331946,0.9614622,3096.2,3094.9,3.64727433]
[1768268332246,0.9614622,3096.1,3094.9,3.64727433]
[1768268332449,0.9614622,3096.0,3094.9,3.64727433]
[1768268332647,0.16534597,3096.4,3094.9,3.64727433]
[1768268332836,0.96150017,3096.3,3094.9,3.64727433]
[1768268333040,0.96150017,3096.2,3094.9,3.64727433]
[1768268333249,0.96150017,3096.1,3094.9,3.64727433]
[1768268333447,0.96150017,3096.0,3094.9,3.64727433]
[1768268333650,0.16534597,3096.4,3095.1,0.71711246]
[1768268333852,0.96162486,3096.3,3095.2,3.64243015]
[1768268334155,0.96162486,3096.2,3095.2,3.64243015]
[1768268334447,0.00367597,3096.4,3095.2,3.64243015]
[1768268334651,0.96156836,3096.3,3095.2,3.64243015]
[1768268334850,0.96156836,3096.2,3095.2,3.64243015]
[1768268335040,0.00367597,3096.4,3095.2,3.64243015]
[1768268335241,0.96156923,3096.3,3095.2,3.64243015]
[1768268335445,0.96156923,3096.2,3095.2,3.64243015]
[1768268335649,0.00367597,3096.4,3095.2,3.64243015]
[1768268335852,0.96170644,3096.3,3095.2,3.64243015]
[1768268336045,0.00367597,3096.4,3095.2,3.64243015]
[1768268336744,0.00367597,3096.4,3095.4,3.64243015]
[1768268345457,1.622,3097.0,3095.4,3.64243015]
[1768268345458,2.31114528,3097.5,3095.4,1.313]
[1768268345659,0.83602434,3097.3,3096.2,3.64854781]
[1768268345956,0.83602434,3097.2,3096.2,4.48457215]
[1768268346156,0.83602434,3097.2,3096.2,3.64854781]
[1768268346358,0.83602434,3097.2,3096.4,0.00484418]
[1768268346560,0.83905699,3097.2,3096.4,0.00718866]
[1768268346966,0.83602434,3096.8,3096.4,0.00718866]
[1768268348262,0.83602434,3097.0,3096.4,0.00718866]
[1768268348660,0.83905699,3097.2,3096.4,0.00718866]
[1768268348958,0.956175,3097.1,3096.4,0.00718866]
[1768268349259,0.83905699,3097.2,3096.4,0.00718866]
[1768268349459,0.95597402,3097.1,3096.4,0.00718866]
[1768268349661,0.83905699,3097.2,3096.4,0.00718866]
[1768268349861,0.95597462,3097.1,3096.4,0.00718866]
[1768268350161,0.83905699,3097.2,3096.4,0.00718866]
[1768268352861,0.00303265,3097.2,3096.4,0.00718866]
[1768268357660,0.00303265,3097.2,3096.4,3.58780651]
[1768268359971,0.83602434,3097.1,3096.4,3.58780651]
[1768268360172,0.83602434,3097.1,3096.4,0.00718866]
[1768268361667,0.83905699,3097.2,3096.4,0.00718866]
[1768268362170,0.00303265,3097.2,3096.4,0.00718866]
[1768268362366,0.00303265,3097.2,3096.4,3.58780651]
[1768268362883,0.83602434,3097.1,3096.4,3.58780651]
[1768268363267,0.83602434,3097.1,3096.4,0.00718866]
[1768268363469,0.83602434,3096.7,3096.4,0.00718866]
[1768268363669,0.83602434,3096.7,3095.7,0.83602434]
[1768268363878,0.83602434,3096.7,3095.7,4.41664219]
[1768268364777,0.83602434,3096.7,3095.7,4.42024302]
[1768268364973,0.00303265,3097.2,3095.7,4.42024302]
[1768268365181,0.00484418,3096.5,3095.7,4.42024302]
[1768268365478,0.00484418,3096.5,3095.9,0.83602434]
[1768268366380,0.00484418,3096.5,3095.9,4.41664219]
[1768268371881,0.00303265,3097.2,3095.9,4.41664219]
[1768268372088,0.95462516,3097.1,3096.3,4.41664219]
[1768268372285,0.83602434,3097.1,3096.3,3.58061785]
[1768268372782,0.83602434,3097.1,3096.0,0.83602434]
[1768268372988,0.83602434,3096.9,3095.9,3.58546203]
[1768268373189,0.83602434,3096.9,3096.0,0.83602434]
[1768268373489,0.00303265,3097.2,3096.0,4.41664219]
[1768268373690,1.79113863,3097.1,3096.2,0.83602434]
[1768268373884,0.95511429,3097.0,3096.2,4.41664219]
[1768268374989,0.00303265,3097.2,3096.2,4.41664219]
[1768268375291,0.9555076,3097.1,3096.4,4.24946563]
[1768268375489,0.9555076,3097.0,3096.4,3.41344129]
[1768268375692,0.00303265,3097.2,3096.4,3.41344129]
[1768268375887,0.95608407,3097.1,3096.4,3.41344129]
[1768268376088,0.95608407,3097.0,3096.4,3.41344129]
[1768268376387,0.00303265,3097.2,3096.4,3.41344129]
[1768268376589,0.95604782,3097.1,3096.4,3.41344129]
[1768268376890,0.95604782,3097.0,3096.4,3.41344129]
[1768268377084,0.83905699,3097.2,3096.4,3.41344129]
[1768268377286,0.95604754,3097.1,3096.4,3.41344129]
[1768268377488,0.95604754,3097.0,3096.4,3.41344129]
[1768268377785,0.83905699,3097.2,3096.4,3.41344129]
[1768268377988,0.95602638,3097.1,3096.4,3.41344129]
[1768268378193,0.95602638,3097.0,3096.4,3.41344129]
[1768268378390,0.83905699,3097.2,3096.4,3.41344129]
[1768268378584,0.95601124,3097.1,3096.4,3.41344129]
[1768268378787,0.95601124,3097.0,3096.4,3.41344129]
[1768268378982,0.00303265,3097.2,3096.5,4.24946563]
[1768268379187,0.95601312,3097.1,3096.5,4.24946563]
[1768268379382,0.00303265,3097.2,3096.5,4.24946563]
[1768268379584,0.16158,3098.1,3096.7,3.41344129]
[1768268379786,0.83602434,3097.9,3096.9,0.83602434]
[1768268379986,0.83602434,3097.7,3096.8,0.83602434]
[1768268380190,0.83602434,3097.3,3095.9,3.41828547]
[1768268380391,0.83602434,3096.9,3096.0,4.24946563]
[1768268380595,0.00228288,3096.9,3096.0,4.24946563]
[1768268381499,0.00228288,3096.9,3096.0,3.41344129]
[1768268381694,0.83830722,3096.9,3096.0,3.41344129]
[1768268382198,0.00228288,3096.9,3096.1,4.24946563]
[1768268382696,0.83602434,3096.6,3095.9,0.00484418]
[1768268382995,0.83602434,3096.8,3095.9,0.00484418]
[1768268383196,0.83602434,3096.4,3095.9,0.00484418]
[1768268384693,0.83602434,3096.5,3095.9,0.00484418]
[1768268386896,3.4549302,3096.9,3095.9,0.00484418]
[1768268387096,0.83602434,3096.6,3095.9,0.00484418]
[1768268387802,0.00228288,3096.9,3095.9,4.25430981]
[1768268388999,0.83830722,3096.9,3095.9,4.25430981]
[1768268391302,0.95613076,3096.8,3095.9,4.25430981]
[1768268391502,0.83830722,3096.9,3095.9,4.25430981]
[1768268398711,0.00228288,3096.9,3096.1,0.83602434]
[1768268403609,0.00228288,3096.9,3095.9,4.25430981]
[1768268405210,0.00228288,3096.9,3095.9,3.41828547]
[1768268406813,0.00228288,3096.9,3096.1,3.44519896]
[1768268407314,1.626,3097.2,3096.1,3.44519896]
[1768268407613,0.95639361,3097.1,3096.1,3.44519896]
[1768268407810,1.626,3097.2,3096.1,3.44519896]
[1768268408011,0.95629218,3097.1,3096.1,3.44519896]
[1768268408313,0.00364648,3097.1,3096.1,3.44519896]
[1768268413220,0.95675187,3097.0,3096.1,3.44519896]
[1768268413411,0.00364648,3097.1,3096.1,3.44519896]
[1768268413616,0.95673659,3097.0,3096.1,3.44519896]
[1768268413919,0.83569744,3097.0,3095.9,0.00484418]
[1768268414920,0.83569744,3096.7,3095.9,0.00484418]
[1768268415116,0.83569744,3097.0,3095.9,0.00484418]
[1768268415319,0.95590622,3096.9,3095.9,0.00484418]
[1768268415519,0.95590622,3096.8,3095.9,0.00484418]
[1768268415716,0.95590622,3096.7,3095.9,0.00484418]
[1768268415917,0.83569744,3097.0,3095.9,0.00484418]
[1768268416217,0.95590592,3096.9,3095.9,0.00484418]
[1768268416413,0.95590592,3096.8,3095.9,0.00484418]
[1768268416712,0.95590592,3096.7,3095.9,0.00484418]
[1768268416913,0.83569744,3097.0,3095.9,0.00484418]
[1768268417112,0.95607564,3096.9,3095.9,0.00484418]
[1768268417312,0.95607564,3096.8,3095.9,0.00484418]
[1768268417512,0.95607564,3096.7,3095.9,0.00484418]
[1768268417717,0.83569744,3097.0,3095.9,0.00484418]
[1768268417917,0.95625469,3096.9,3095.9,0.00484418]
[1768268418118,0.95625469,3096.8,3095.9,0.00484418]
[1768268418319,0.95625469,3096.7,3095.9,0.00484418]
[1768268418520,0.83569744,3097.0,3095.9,0.00484418]
[1768268418724,0.95626799,3096.9,3095.9,0.00484418]
[1768268418922,0.95626799,3096.8,3095.9,0.00484418]
[1768268419123,0.95626799,3096.7,3095.9,0.00484418]
[1768268419421,0.83569744,3097.0,3095.9,0.00484418]
[1768268419623,0.95626556,3096.9,3095.9,0.00484418]
[1768268419824,0.95626556,3096.8,3095.9,0.00484418]
[1768268420023,0.95626556,3096.7,3095.9,0.00484418]
[1768268420321,0.83569744,3097.0,3095.9,0.00484418]
[1768268420521,0.95629752,3096.9,3095.9,0.00484418]
[1768268420719,0.95629752,3096.8,3095.9,0.00484418]
[1768268420924,0.00364648,3097.1,3096.0,0.83569744]
[1768268421118,0.95633567,3097.0,3096.1,3.42752541]
[1768268421423,0.00364648,3097.1,3096.1,3.42752541]
[1768268421615,0.95635775,3097.0,3096.1,3.42752541]
[1768268421815,0.00364648,3097.1,3096.1,3.42752541]
[1768268422116,0.95636591,3097.0,3096.1,3.42752541]
[1768268422319,0.00364648,3097.1,3096.1,3.42752541]
[1768268422619,0.95633955,3097.0,3096.1,3.42752541]
[1768268422819,0.00364648,3097.1,3096.1,3.42752541]
[1768268423119,0.95637257,3097.0,3096.1,3.42752541]
[1768268423319,0.00364648,3097.1,3096.1,3.42752541]
[1768268423625,0.95634697,3097.0,3096.1,3.42752541]
[1768268423824,0.00364648,3097.1,3096.1,3.42752541]
[1768268424019,0.95635096,3097.0,3096.1,3.42752541]
[1768268424219,0.00364648,3097.1,3096.1,3.42752541]
[1768268424424,0.95632718,3097.0,3096.1,3.42752541]
[1768268424627,0.00364648,3097.1,3096.1,3.42752541]
[1768268424822,0.95632192,3097.0,3096.1,3.42752541]
[1768268425018,0.00364648,3097.1,3096.1,3.42752541]
[1768268425219,0.95631731,3097.0,3096.1,3.42752541]
[1768268425520,0.00364648,3097.1,3096.1,3.42752541]
[1768268425715,0.95630234,3097.0,3096.1,3.42752541]
[1768268425914,0.00364648,3097.1,3096.1,3.42752541]
[1768268426120,0.95630026,3097.0,3096.1,3.42752541]
[1768268426316,0.00364648,3097.1,3096.1,3.42752541]
[1768268426519,0.95628269,3097.0,3096.1,3.42752541]
[1768268426730,0.00364648,3097.1,3096.1,3.42752541]
[1768268427025,0.95629618,3097.0,3096.1,3.42752541]
[1768268427328,0.00364648,3097.1,3096.1,3.42752541]
[1768268435540,0.00364648,3097.1,3096.4,3.36985616]
[1768268436736,1.7826,3097.7,3096.4,3.36985616]
[1768268437037,0.95642493,3097.6,3096.4,3.36985616]
[1768268437238,0.95642493,3097.5,3096.4,3.36985616]
[1768268437441,0.95642493,3097.4,3096.4,3.36985616]
[1768268437737,0.00368618,3097.4,3096.4,3.36985616]
[1768268446144,0.00368618,3097.4,3096.6,4.2055536]
[1768268446350,0.00368618,3097.4,3096.6,3.36985616]
[1768268448249,1.621,3097.7,3096.6,3.36985616]
[1768268448455,0.95506248,3097.6,3096.6,3.36985616]
[1768268448745,1.621,3097.7,3096.6,3.36985616]
[1768268448946,0.95506834,3097.6,3096.6,3.36985616]
[1768268449248,0.00327024,3097.6,3096.6,3.36985616]
[1768268451847,0.00327024,3097.6,3096.6,4.2055536]
[1768268454350,0.00327024,3097.6,3096.6,3.36985616]
[1768268456546,0.83569744,3097.3,3095.9,3.37470034]
[1768268456746,0.95491244,3097.2,3095.9,3.37470034]
[1768268456946,0.95490394,3097.1,3095.9,3.37470034]
[1768268457145,4.43123998,3097.5,3095.9,3.37470034]
[1768268457349,0.9549058,3097.4,3095.9,3.37470034]
[1768268457537,0.9549058,3097.3,3095.9,3.37470034]
[1768268457743,0.9549058,3097.2,3095.9,3.37470034]
[1768268458046,0.9549058,3097.1,3095.9,3.37470034]
[1768268458246,4.43123998,3097.5,3096.0,4.2055536]
[1768268458447,0.95490541,3097.4,3096.0,4.2055536]
[1768268458652,0.95490541,3097.3,3096.0,4.2055536]
[1768268458844,0.95490541,3097.2,3096.0,4.2055536]
[1768268459141,0.95490541,3097.1,3096.0,4.2055536]
[1768268459338,4.43123998,3097.5,3096.0,4.2055536]
[1768268459552,0.95489797,3097.4,3096.0,4.2055536]
[1768268459752,0.95489797,3097.3,3096.0,4.2055536]
[1768268459954,0.95489797,3097.2,3096.0,4.2055536]
[1768268460255,0.95489797,3097.1,3096.0,4.2055536]
[1768268460444,4.43123998,3097.5,3096.0,4.2055536]
[1768268460645,0.95493103,3097.4,3096.0,4.2055536]
[1768268460853,0.95493103,3097.3,3096.0,4.2055536]
[1768268461053,0.95493103,3097.2,3096.0,4.2055536]
[1768268461257,0.95493103,3097.1,3096.0,4.2055536]
[1768268461451,4.43123998,3097.5,3096.0,4.2055536]
[1768268461650,0.95493293,3097.4,3096.0,4.2055536]
[1768268461851,0.95493293,3097.3,3096.0,4.2055536]
[1768268462152,0.95493293,3097.2,3096.0,4.2055536]
[1768268462353,0.95493293,3097.1,3096.0,4.2055536]
[1768268462544,4.43123998,3097.5,3096.0,4.2055536]
[1768268462744,0.95494295,3097.4,3096.0,4.2055536]
[1768268462958,0.95494295,3097.3,3096.0,4.2055536]
[1768268463248,0.95498877,3097.2,3096.0,4.2055536]
[1768268463553,0.00327024,3097.6,3095.9,0.00484418]
[1768268463554,0.00327024,3097.6,3096.4,3.36985616]
[1768268463759,0.95505304,3097.5,3096.4,3.36985616]
[1768268463951,0.00327024,3097.6,3096.4,3.36985616]
[1768268464148,0.95514041,3097.5,3096.4,3.36985616]
[1768268464350,0.00327024,3097.6,3096.4,3.36985616]
[1768268464550,0.95527029,3097.5,3096.4,3.36985616]
[1768268464854,0.00327024,3097.6,3096.4,3.36985616]
[1768268465058,0.95543427,3097.5,3096.4,3.36985616]
[1768268465252,0.00327024,3097.6,3096.4,3.36985616]
[1768268465554,0.95550228,3097.5,3096.4,3.36985616]
[1768268465750,0.00327024,3097.6,3096.4,3.36985616]
[1768268465959,0.95550204,3097.5,3096.4,3.36985616]
[1768268466149,0.00327024,3097.6,3096.4,3.36985616]
[1768268466350,0.95551958,3097.5,3096.4,3.36985616]
[1768268466654,0.00327024,3097.6,3096.4,3.36985616]
[1768268466955,0.95555174,3097.5,3096.7,3.5660864]
[1768268467158,0.00327024,3097.6,3096.7,3.5660864]
[1768268467355,0.00327024,3097.6,3096.8,4.40132918]
[1768268468364,0.00327024,3097.6,3097.0,0.83524278]
[1768268468664,0.83524278,3098.1,3097.0,4.40132918]
[1768268468859,0.95564711,3098.0,3097.0,4.40132918]
[1768268469161,0.95564711,3097.9,3097.0,4.40132918]
[1768268469360,0.95564711,3097.8,3097.0,4.40132918]
[1768268469557,0.00321171,3097.8,3097.0,4.40132918]
[1768268470954,0.00321171,3097.8,3097.2,0.83524278]
[1768268471260,0.99681278,3098.3,3097.2,0.83524278]
[1768268471462,0.95536512,3098.2,3097.2,0.83524278]
[1768268471659,0.95536512,3098.1,3097.2,0.83524278]
[1768268471855,0.95536512,3098.0,3097.2,0.83524278]
[1768268472060,1.7906079,3097.9,3097.0,3.5660864]
[1768268472259,0.83524278,3097.9,3097.0,3.5660864]
[1768268473868,0.95518285,3097.8,3097.0,3.5660864]
[1768268474060,0.83524278,3097.9,3097.0,3.5660864]
[1768268474362,0.9551827,3097.8,3097.0,3.5660864]
[1768268474562,0.83524278,3097.9,3097.0,3.5660864]
[1768268474770,0.95467901,3097.8,3097.0,3.5660864]
[1768268475068,0.83524278,3097.9,3097.0,3.5660864]
[1768268475263,0.9546771,3097.8,3097.0,3.5660864]
[1768268475564,0.83524278,3097.9,3097.0,3.5660864]
[1768268475766,0.95461452,3097.8,3097.0,3.5660864]
[1768268475959,0.83901572,3098.0,3097.0,3.5660864]
[1768268476160,0.95461712,3097.9,3097.0,3.5660864]
[1768268476468,0.95461712,3097.8,3097.0,3.5660864]
[1768268476669,0.83901572,3098.0,3097.0,3.5660864]
[1768268476966,0.95456891,3097.9,3097.0,3.5660864]
[1768268477266,0.95456891,3097.8,3097.0,3.5660864]
[1768268477465,0.83524278,3097.8,3097.0,3.5660864]
[1768268478369,0.83524278,3097.4,3096.5,3.59459525]
[1768268479467,0.83524278,3097.6,3096.6,4.42983803]
[1768268479766,0.95473824,3097.5,3096.6,4.42983803]
[1768268479961,0.83524278,3097.6,3096.6,4.42983803]
[1768268480161,0.95473816,3097.5,3096.6,4.42983803]
[1768268480466,0.83524278,3097.8,3096.8,0.83524278]
[1768268480663,0.95474242,3097.7,3096.8,0.83524278]
[1768268480866,0.95474242,3097.6,3096.8,0.83524278]
[1768268481066,0.83524278,3097.8,3096.8,0.83524278]
[1768268481272,0.83524278,3097.3,3096.3,3.59459525]
[1768268481458,0.83524278,3097.3,3096.3,4.42983803]
[1768268481660,0.83524278,3097.1,3096.3,3.59459525]
[1768268482062,0.83524278,3096.5,3095.8,3.59459525]
[1768268482972,0.83524278,3096.6,3095.8,3.59459525]
[1768268484468,0.83524278,3096.4,3095.5,0.83524278]
[1768268485065,0.83524278,3096.5,3095.5,0.83524278]
[1768268490176,0.83524278,3096.7,3095.5,0.83524278]
[1768268490363,0.83524278,3096.7,3095.7,0.83884361]
[1768268491376,0.83524278,3096.8,3095.7,0.83884361]
[1768268492777,0.83524278,3096.6,3095.7,0.83884361]
[1768268493377,0.83524278,3096.4,3095.7,0.00360083]
[1768268494880,0.84008696,3096.4,3095.7,0.00360083]
[1768268495581,0.83524278,3095.8,3094.5,3.56819313]
[1768268495766,0.83524278,3095.8,3094.2,3.233]
[1768268495767,0.16168,3096.2,3095.0,0.83524278]
[1768268495971,0.16168,3096.2,3095.4,0.83524278]
[1768268496379,0.16535045,3096.2,3095.4,0.00418193]
[1768268496583,1.00059323,3096.2,3095.4,0.00418193]
[1768268497081,0.16535045,3096.2,3095.4,0.00418193]
[1768268497383,1.00059323,3096.2,3095.4,0.00418193]
[1768268498981,0.83524278,3096.0,3095.4,0.00418193]
[1768268499772,0.83524278,3095.8,3094.8,3.56819313]
[1768268500472,0.83524278,3095.8,3094.9,0.83524278]
[1768268500978,0.83524278,3095.8,3094.9,0.83928685]
[1768268501778,0.83524278,3095.8,3094.9,0.00404407]
[1768268502478,4.42817931,3095.8,3094.9,0.00404407]
[1768268502676,4.42817931,3095.8,3094.3,1.31]
[1768268502677,0.83524278,3095.4,3094.3,1.31]
[1768268502983,0.83524278,3095.4,3094.4,0.83524278]
[1768268503683,0.83524278,3095.4,3094.4,0.8385201]
[1768268504279,0.83524278,3095.3,3094.4,0.8385201]
[1768268504482,0.83524278,3095.5,3094.4,0.8385201]
[1768268505185,0.83524278,3095.1,3094.1,0.83524278]
[1768268505482,0.83524278,3095.1,3094.0,0.83524278]
[1768268505883,0.83524278,3095.3,3094.2,0.83524278]
[1768268506183,0.83524278,3095.3,3094.2,0.83881962]
[1768268507285,0.83524278,3095.1,3094.2,0.83881962]
[1768268507484,0.84008696,3095.1,3094.2,0.83881962]
[1768268508585,0.84008696,3095.1,3094.2,0.00357684]
[1768268513088,0.83524278,3094.9,3094.2,0.00357684]
[1768268513488,0.00484418,3095.1,3094.2,0.00357684]
[1768268513687,0.83524278,3095.0,3094.2,0.00357684]
[1768268513882,0.83524278,3095.0,3094.3,0.00484418]
[1768268514392,0.84008696,3095.1,3094.3,0.00484418]
[1768268514892,0.00484418,3095.1,3094.3,0.00484418]
[1768268515088,0.00484418,3095.1,3094.3,3.57303731]
[1768268515289,0.00484418,3095.1,3094.6,4.40343591]
[1768268515581,0.00484418,3095.1,3094.6,3.56819313]
[1768268518183,0.00484418,3095.1,3094.3,0.00484418]
[1768268520588,0.83524278,3094.8,3094.3,0.00484418]
[1768268520793,0.83524278,3095.0,3094.2,0.00357684]
[1768268521898,0.00484418,3095.1,3094.3,0.83524278]
[1768268523199,0.00484418,3095.1,3094.5,0.83524278]
[1768268523598,0.00484418,3095.1,3094.3,4.40343591]
[1768268524104,0.00484418,3095.1,3094.2,0.00357684]
[1768268524105,0.83524278,3094.9,3094.2,0.00357684]
[1768268524403,0.84008696,3095.1,3094.2,0.00357684]
[1768268525897,0.84008696,3095.1,3092.9,3.33610038]
[1768268526109,0.83524278,3094.3,3092.9,3.33610038]
[1768268526305,0.83524278,3094.5,3093.4,0.83524278]
[1768268526606,4.30359339,3094.7,3093.6,0.83524278]
[1768268526803,0.95297936,3094.6,3093.6,0.83524278]
[1768268527003,0.95297936,3094.5,3093.6,0.83846425]
[1768268527205,4.30359339,3094.7,3093.6,0.83846425]
[1768268527405,0.95300513,3094.6,3093.6,0.00322147]
[1768268527709,0.95300513,3094.5,3093.6,0.00322147]
[1768268528007,3.46835061,3094.7,3093.6,0.00322147]
[1768268528208,0.95299954,3094.6,3093.6,0.00322147]
[1768268528408,0.95299954,3094.5,3093.6,0.00322147]
[1768268528610,3.46835061,3094.7,3093.6,0.00322147]
[1768268528813,0.95308982,3094.6,3093.6,0.00322147]
[1768268529012,0.95308982,3094.5,3093.6,0.00322147]
[1768268529314,0.71739229,3094.6,3093.6,0.00322147]
[1768268529611,0.95315018,3094.5,3093.6,0.00322147]
[1768268529810,0.95315018,3094.4,3093.6,0.00322147]
[1768268530004,0.71739229,3094.6,3093.6,0.00322147]
[1768268530204,0.95291747,3094.5,3093.6,0.00322147]
[1768268530515,0.95291747,3094.4,3093.6,0.00322147]
[1768268530811,3.46835061,3094.7,3093.6,0.00322147]
[1768268531008,0.9531584,3094.6,3093.6,0.00322147]
[1768268531207,0.9531584,3094.5,3093.6,0.00322147]
[1768268531408,0.9531584,3094.4,3093.6,0.00322147]
[1768268531611,0.9531584,3094.3,3093.6,0.00322147]
[1768268531807,3.46835061,3094.7,3093.6,0.00322147]
[1768268532012,0.95328659,3094.6,3093.6,0.00322147]
[1768268532311,0.95328659,3094.5,3093.6,0.00322147]
[1768268532611,0.95328659,3094.4,3093.6,0.00322147]
[1768268532911,0.95328659,3094.3,3093.6,0.00322147]
[1768268533114,0.71739229,3094.5,3093.6,0.00322147]
[1768268533312,0.95334095,3094.4,3093.6,0.00322147]
[1768268533610,0.95334095,3094.3,3093.0,3.34368608]
[1768268533799,0.71739229,3094.5,3093.0,3.34368608]
[1768268534005,0.95339944,3094.4,3093.0,3.34368608]
[1768268534315,0.16176,3094.6,3093.0,3.34368608]
[1768268534612,0.9538887,3094.5,3093.0,3.34774216]
[1768268534803,0.9538887,3094.4,3093.0,3.34774216]
[1768268535005,0.71739229,3094.5,3093.0,3.34774216]
[1768268535205,0.95364938,3094.4,3093.0,3.34774216]
[1768268535515,0.71739229,3094.5,3093.0,3.34774216]
[1768268535715,0.95352524,3094.4,3093.0,3.34774216]
[1768268535915,0.71739229,3094.5,3093.0,3.34774216]
[1768268536118,0.95353235,3094.4,3093.0,3.34774216]
[1768268536318,0.16176,3094.6,3093.2,0.71739229]
[1768268536517,0.95341558,3094.5,3093.3,3.34368608]
[1768268536709,1.67080787,3094.4,3093.0,0.00405608]
[1768268536904,0.71739229,3094.4,3093.0,0.00405608]
[1768268537114,0.16177,3094.5,3093.0,3.34774216]
[1768268537313,0.95336701,3094.4,3093.0,3.34774216]
[1768268537512,0.16177,3094.5,3093.0,3.34774216]
[1768268537710,0.95331492,3094.4,3093.0,3.34774216]
[1768268537915,0.16177,3094.5,3093.0,3.34774216]
[1768268538119,0.95331542,3094.4,3093.0,3.34774216]
[1768268538315,0.16177,3094.5,3093.0,3.34774216]
[1768268538615,0.95323684,3094.4,3093.0,3.34774216]
[1768268538919,0.16177,3094.5,3093.0,3.34774216]
[1768268539120,0.71739229,3094.3,3093.0,3.34774216]
[1768268540921,0.16177,3094.5,3093.0,3.34774216]
[1768268541220,0.95227318,3094.4,3093.0,3.34774216]
[1768268541420,0.87916229,3094.5,3093.0,3.34774216]
[1768268541623,0.87916229,3094.5,3093.0,4.06513445]
[1768268541822,0.95219686,3094.4,3093.0,4.06513445]
[1768268542025,0.87916229,3094.5,3093.0,4.06513445]
[1768268542226,0.95219059,3094.4,3093.0,4.06513445]
[1768268542424,0.87916229,3094.5,3093.0,4.06513445]
[1768268542618,0.95215491,3094.4,3093.0,4.06513445]
[1768268542818,0.87916229,3094.5,3093.0,4.06513445]
[1768268543016,0.95215613,3094.4,3093.0,4.06513445]
[1768268543227,0.87916229,3094.5,3093.0,4.06513445]
[1768268543426,0.95212953,3094.4,3093.0,4.06513445]
[1768268543629,0.87916229,3094.5,3093.0,4.06513445]
[1768268543832,0.95212674,3094.4,3093.0,4.06513445]
[1768268544033,0.87916229,3094.5,3093.0,4.06513445]
[1768268544233,0.9522617,3094.4,3093.0,4.06513445]
[1768268544426,0.87916229,3094.5,3093.0,4.06513445]
[1768268544727,0.95227758,3094.4,3093.0,4.06513445]
[1768268544926,0.87916229,3094.5,3093.0,4.06513445]
[1768268545126,0.95228489,3094.4,3093.0,4.06513445]
[1768268545326,0.87916229,3094.5,3093.0,4.06513445]
[1768268545625,0.95246904,3094.4,3093.0,4.06513445]
[1768268545823,0.87916229,3094.5,3093.0,4.06513445]
[1768268546025,0.95245899,3094.4,3093.0,3.34774216]
[1768268546332,0.87916229,3094.5,3093.0,3.34774216]
[1768268546532,0.95269705,3094.4,3093.0,3.34774216]
[1768268546835,0.87916229,3094.5,3093.0,3.34774216]
[1768268547028,0.95269106,3094.4,3093.2,3.34368608]
[1768268547229,0.71739229,3094.3,3093.0,0.00405608]
[1768268549932,0.16177,3094.5,3093.0,0.00405608]
[1768268549933,0.87916229,3094.5,3093.0,3.34774216]
[1768268550126,4.19404773,3094.4,3093.0,0.00405608]
[1768268550327,3.95781925,3094.2,3092.2,3.34368608]
[1768268550533,2.55862077,3094.1,3092.5,3.34368608]
[1768268550734,0.95362077,3094.0,3092.5,3.34368608]
[1768268550934,1.605,3094.1,3092.5,3.34368608]
[1768268550935,0.95362077,3093.9,3092.5,3.34368608]
[1768268551132,0.00484418,3093.6,3092.5,3.34368608]
[1768268551436,0.00736202,3093.6,3092.5,3.3466664]
[1768268557946,0.00736202,3093.6,3092.7,3.35297235]
[1768268558437,0.16178,3094.3,3092.7,3.35297235]
[1768268558638,0.95334323,3094.2,3092.7,3.35297235]
[1768268558838,0.95334323,3094.1,3092.7,3.35297235]
[1768268559039,0.95334323,3094.0,3092.7,3.35297235]
[1768268559239,0.71739229,3094.1,3092.7,3.35297235]
[1768268559432,0.95336964,3094.0,3092.7,3.35297235]
[1768268559638,0.72059713,3094.1,3092.7,3.35297235]
[1768268559841,0.95336501,3094.0,3092.7,3.35297235]
[1768268560041,0.95336962,3093.9,3092.7,3.35297235]
[1768268560243,0.72059713,3094.1,3092.7,3.35297235]
[1768268560443,0.95334686,3094.0,3092.7,3.35297235]
[1768268560644,0.71739229,3093.8,3092.7,3.35297235]